bitfinex-derivatives/quotes_SOLF0:USTF0_20241206
["timestamp","ask_amount","ask_price","bid_price","bid_amount"]
[1733489000158,10.51328847,233.86,233.74,2.02]
[1733489000560,10.51328847,233.83,233.74,2.02]
[1733489001358,10.51328847,233.8,233.74,2.02]
[1733489001555,10.51328847,233.8,233.7,2.87879277]
[1733489001759,10.51328847,233.77,233.71,2.02]
[1733489002063,10.51328847,233.77,233.69,2.02]
[1733489002064,11.73115546,233.76,233.69,2.02]
[1733489002259,11.73115546,233.75,233.63,44.46]
[1733489002463,22.24444393,233.74,233.64,2.02]
[1733489002664,11.73115546,233.73,233.64,2.02]
[1733489002860,11.73115546,233.72,233.64,2.02]
[1733489003067,10.51328847,233.74,233.64,2.02]
[1733489003260,11.70590392,233.73,233.64,2.02]
[1733489003461,10.51328847,233.74,233.64,2.02]
[1733489003664,11.70585466,233.73,233.64,2.02]
[1733489003860,10.51328847,233.74,233.64,2.02]
[1733489004261,10.51328847,233.74,233.65,2.02]
[1733489007568,10.51328847,233.71,233.64,2.2756]
[1733489007957,1.7391,233.73,233.64,2.2756]
[1733489009767,10.51328847,233.71,233.64,2.2756]
[1733489013269,10.51328847,233.71,233.64,0.2556]
[1733489013967,10.51328847,233.65,233.49,44.48]
[1733489014167,10.51328847,233.59,233.5,2.02]
[1733489014362,10.51328847,233.59,233.45,10.51328847]
[1733489014363,10.51328847,233.59,233.45,2.02]
[1733489014971,10.51328847,233.56,233.45,2.02]
[1733489015279,10.51328847,233.53,233.46,2.02]
[1733489016068,3.4187,233.52,233.44,2.02]
[1733489016278,10.51328847,233.5,233.41,2.02]
[1733489016572,12.53328847,233.5,233.38,2.02]
[1733489016771,10.51328847,233.47,233.38,2.02]
[1733489017276,12.53328847,233.5,233.38,2.02]
[1733489017875,10.51328847,233.5,233.38,2.02]
[1733489018068,3.4187,233.52,233.39,10.51328847]
[1733489019072,10.51328847,233.5,233.4,2.02]
[1733489019374,10.51328847,233.5,233.32,1.7149]
[1733489019375,10.51328847,233.46,233.41,2.02]
[1733489021067,10.51328847,233.46,233.29,1.7851]
[1733489021068,10.51328847,233.43,233.36,2.02]
[1733489021370,10.51328847,233.43,233.35,2.02]
[1733489021771,10.51328847,233.4,233.25,4.33096002]
[1733489021971,3.5031,233.39,233.26,2.02]
[1733489022173,3.5031,233.39,233.23,10.51328847]
[1733489022372,10.51328847,233.37,233.24,2.02]
[1733489023072,3.5031,233.39,233.26,10.51328847]
[1733489023470,3.5031,233.39,233.26,14.74026648]
[1733489023868,1.8035,233.39,233.26,14.74026648]
[1733489024073,10.51328847,233.43,233.26,14.74026648]
[1733489024874,10.51328847,233.43,233.27,3.5793]
[1733489025374,10.51328847,233.43,233.28,1.8547]
[1733489025571,10.51328847,233.43,233.29,2.02]
[1733489026576,10.51328847,233.4,233.29,2.02]
[1733489026771,10.51328847,233.4,233.3,2.04]
[1733489028287,3.5573,233.49,233.3,12.55328847]
[1733489028288,10.51328847,233.43,233.3,12.55328847]
[1733489029078,10.51328847,233.43,233.31,2.04]
[1733489029283,10.51328847,233.43,233.3,10.51328847]
[1733489029284,10.51328847,233.43,233.32,2.04]
[1733489029484,10.51328847,233.43,233.32,6.2753433]
[1733489029786,10.51328847,233.43,233.32,2.04]
[1733489030186,10.51328847,233.43,233.32,6.35417227]
[1733489032985,10.51328847,233.46,233.32,6.35417227]
[1733489033187,3.5573,233.49,233.33,10.51328847]
[1733489034985,3.5573,233.49,233.32,6.35417227]
[1733489035581,3.5573,233.49,233.3,10.51328847]
[1733489035786,10.51328847,233.44,233.31,2.04]
[1733489036282,10.51328847,233.41,233.31,2.04]
[1733489036596,10.51328847,233.41,233.32,2.04]
[1733489036788,10.51328847,233.41,233.28,6.09954754]
[1733489036989,10.51328847,233.41,233.29,2.04]
[1733489037489,10.51328847,233.38,233.29,2.04]
[1733489039485,10.51328847,233.38,233.23,14.88291405]
[1733489039690,10.51328847,233.38,233.24,2.04]
[1733489039993,1.837,233.37,233.24,2.04]
[1733489040194,10.51328847,233.35,233.24,2.04]
[1733489040994,1.837,233.37,233.24,2.04]
[1733489043286,1.837,233.37,233.25,2.79078732]
[1733489043492,10.51328847,233.35,233.24,2.04]
[1733489043793,10.51328847,233.35,233.25,2.79073528]
[1733489043995,10.51328847,233.35,233.24,2.04]
[1733489044197,10.51328847,233.35,233.25,2.79073344]
[1733489044391,10.51328847,233.35,233.26,2.79073344]
[1733489044594,10.51328847,233.35,233.24,2.04]
[1733489044795,10.51328847,233.35,233.25,2.79305072]
[1733489044992,10.51328847,233.35,233.26,2.79305072]
[1733489045192,10.51328847,233.35,233.24,2.04]
[1733489045389,10.51328847,233.35,233.25,2.79555912]
[1733489045592,10.51328847,233.35,233.26,2.79555912]
[1733489045793,10.51328847,233.35,233.24,2.04]
[1733489045994,10.51328847,233.35,233.25,7.26833331]
[1733489046190,10.51328847,233.35,233.26,2.79551281]
[1733489046389,10.51328847,233.35,233.27,2.79551281]
[1733489046591,10.51328847,233.35,233.28,2.79551281]
[1733489046801,10.51328847,233.35,233.29,2.04]
[1733489048799,1.837,233.37,233.29,2.04]
[1733489049303,10.51328847,233.35,233.29,2.04]
[1733489049804,10.51328847,233.35,233.22,1.8603]
[1733489050100,10.51328847,233.35,233.23,9.32625322]
[1733489050296,10.51328847,233.32,233.24,7.28625322]
[1733489050497,10.51328847,233.32,233.25,7.28625322]
[1733489050697,10.51328847,233.32,233.26,2.80240508]
[1733489050894,10.51328847,233.32,233.23,6.25635919]
[1733489051093,10.51328847,233.32,233.24,7.29005609]
[1733489051299,10.51328847,233.32,233.25,2.80386773]
[1733489051601,10.51328847,233.32,233.23,6.25635919]
[1733489051803,10.51328847,233.32,233.24,2.76115976]
[1733489052100,10.51328847,233.32,233.23,2.04]
[1733489052295,10.51328847,233.32,233.23,6.2297927]
[1733489053001,10.51328847,233.32,233.23,2.04]
[1733489053204,10.51328847,233.32,233.17,12.26728847]
[1733489053404,10.51328847,233.32,233.18,9.22876346]
[1733489053605,10.51328847,233.32,233.19,7.18876346]
[1733489053806,10.51328847,233.32,233.2,7.18876346]
[1733489054102,10.51328847,233.32,233.21,2.76490902]
[1733489054305,10.51328847,233.32,233.22,7.13712317]
[1733489054503,10.51328847,233.32,233.23,2.04]
[1733489054702,10.51328847,233.32,233.24,2.04]
[1733489055804,10.51328847,233.32,233.25,2.04]
[1733489057410,10.51328847,233.35,233.25,2.04]
[1733489057710,10.51328847,233.35,233.26,2.77510704]
[1733489058006,10.51328847,233.35,233.27,7.09136988]
[1733489058209,10.51328847,233.35,233.28,2.77510704]
[1733489058406,10.51328847,233.35,233.29,2.77910024]
[1733489058608,10.51328847,233.35,233.3,2.04]
[1733489058804,1.837,233.37,233.3,2.04]
[1733489060908,10.51328847,233.35,233.3,2.04]
[1733489064110,6.77164023,233.32,233.3,2.04]
[1733489064706,6.77164023,233.32,233.26,2.04]
[1733489065013,6.77164023,233.29,233.26,2.04]
[1733489065617,1.837,233.37,233.26,2.04]
[1733489065914,6.77164023,233.3,233.26,2.04]
[1733489067209,6.77164023,233.3,233.11,18.1593]
[1733489067210,6.77164023,233.28,232.98,23.48702446]
[1733489067414,6.77164023,233.13,233.03,6.77164023]
[1733489067717,6.77164023,233.13,233.04,13.58480373]
[1733489067918,6.77164023,233.13,233.05,7.25247885]
[1733489068212,6.77164023,233.13,233.06,7.25247885]
[1733489068409,6.77164023,233.13,233.07,2.78941494]
[1733489068611,6.77164023,233.13,233.08,2.78941494]
[1733489068813,6.77164023,233.09,232.97,8.00513781]
[1733489069107,6.77164023,233.09,232.98,7.24812167]
[1733489069312,6.77164023,233.09,232.99,9.28812167]
[1733489069509,6.77164023,233.09,233.01,6.77164023]
[1733489069711,6.77164023,233.12,233.03,6.77164023]
[1733489069908,6.77164023,233.12,233.04,2.7877391]
[1733489070221,6.77164023,233.12,233.0,2.04]
[1733489070222,10.59889336,233.15,233.05,2.04]
[1733489070612,10.59889336,233.15,233.06,2.04]
[1733489072016,12.81,233.49,233.1,10.59889336]
[1733489072211,1.742,233.27,233.11,2.04]
[1733489072517,10.59889336,233.2,233.11,2.04]
[1733489074320,10.59889336,233.2,233.11,6.3590305]
[1733489074517,3.6176,233.26,233.11,2.04]
[1733489074716,10.59889336,233.24,233.11,2.04]
[1733489075114,10.59889336,233.24,233.11,6.39975585]
[1733489075316,10.59889336,233.24,233.11,2.04]
[1733489075913,10.59889336,233.24,233.11,6.34574118]
[1733489076117,10.59889336,233.24,233.11,2.04]
[1733489076719,10.59889336,233.24,233.11,6.34874199]
[1733489076918,10.59889336,233.24,233.11,2.04]
[1733489077518,10.59889336,233.24,233.11,6.35174281]
[1733489077823,3.6176,233.26,233.11,6.35174281]
[1733489078015,10.59889336,233.25,233.11,6.35174281]
[1733489078219,10.59889336,233.25,233.11,2.04]
[1733489078923,10.59889336,233.25,233.12,4.23678754]
[1733489079425,10.59889336,233.22,233.11,2.04]
[1733489079623,10.59889336,233.22,233.08,4.2029241]
[1733489079823,10.59889336,233.22,233.09,2.04]
[1733489081223,10.59889336,233.19,233.09,2.04]
[1733489083930,10.59889336,233.19,233.07,4.33630751]
[1733489084125,10.59889336,233.19,233.1,2.1]
[1733489090227,6.78048526,233.16,233.1,2.1]
[1733489093137,6.78048526,233.14,233.1,2.1]
[1733489093333,6.78048526,233.16,233.1,2.1]
[1733489099836,6.78048526,233.16,233.11,2.1]
[1733489101535,6.78048526,233.19,233.11,8.88048526]
[1733489102134,6.78048526,233.17,233.11,8.88048526]
[1733489102840,6.78048526,233.17,233.11,2.1]
[1733489103542,6.78048526,233.18,233.11,2.1]
[1733489104439,3.6176,233.26,233.11,2.1]
[1733489104740,6.78048526,233.18,233.11,2.1]
[1733489105941,3.6176,233.26,233.12,8.88048526]
[1733489106140,6.78048526,233.21,233.12,8.88048526]
[1733489106537,3.6176,233.26,233.12,2.1]
[1733489106538,6.78048526,233.19,233.12,2.1]
[1733489106935,6.78048526,233.17,233.12,2.1]
[1733489108046,3.43,233.16,233.12,2.1]
[1733489108442,3.43,233.16,233.05,4.43822005]
[1733489108443,4.28,233.15,233.02,4.43822005]
[1733489108643,4.28,233.15,233.08,6.78048526]
[1733489108940,5.65,233.14,233.08,6.78048526]
[1733489109637,3.43,233.13,233.08,6.78048526]
[1733489111040,3.43,233.13,233.03,4.43822005]
[1733489111242,3.43,233.13,233.07,6.78048526]
[1733489112847,4.19,233.12,233.07,6.78048526]
[1733489113544,6.78048526,233.11,233.0,4.23035777]
[1733489113747,6.78048526,233.11,233.04,6.78048526]
[1733489115545,6.78048526,233.07,232.88,12.81]
[1733489115744,6.78048526,233.07,232.99,6.78048526]
[1733489115947,6.78048526,233.07,233.01,6.78048526]
[1733489117349,1.7501,233.1,233.01,6.78048526]
[1733489117553,1.7501,233.1,233.03,6.78048526]
[1733489118853,6.78048526,233.09,233.03,6.78048526]
[1733489119055,6.78048526,233.09,233.03,11.09413746]
[1733489119257,6.78048526,233.09,233.03,6.78048526]
[1733489119456,6.78048526,233.07,233.0,2.70542956]
[1733489119652,6.78048526,233.07,233.0,11.10056998]
[1733489120658,6.78048526,233.07,232.99,1.7995]
[1733489120858,6.78048526,233.07,232.99,8.57998526]
[1733489121259,6.78048526,233.07,232.97,4.39117815]
[1733489121556,1.7501,233.1,233.01,6.78048526]
[1733489121760,1.7501,233.1,233.03,6.78048526]
[1733489121957,8.53058526,233.1,233.03,6.78048526]
[1733489122562,6.78048526,233.08,233.02,4.23932926]
[1733489122861,6.78048526,233.08,233.01,6.78048526]
[1733489123064,6.78048526,233.08,233.01,11.0262488]
[1733489123373,6.78048526,233.08,233.01,4.24576354]
[1733489123667,6.78048526,233.08,233.01,6.78048526]
[1733489123865,6.78048526,233.08,233.01,11.09144945]
[1733489124062,6.78048526,233.08,233.01,6.78048526]
[1733489124266,6.78048526,233.08,233.01,10.96481886]
[1733489124466,6.78048526,233.08,232.98,2.70492751]
[1733489124666,6.78048526,233.06,232.99,6.78048526]
[1733489124867,6.78048526,233.06,232.99,11.01713375]
[1733489125267,4.29,233.05,232.99,11.01713375]
[1733489125865,4.29,233.05,233.03,6.78048526]
[1733489126069,4.29,233.05,233.01,6.78048526]
[1733489126568,4.29,233.05,233.0,6.78048526]
[1733489126765,4.29,233.05,232.88,12.81]
[1733489126978,4.29,233.05,232.99,6.78048526]
[1733489128173,4.29,233.05,233.01,6.78048526]
[1733489128568,5.68,233.04,233.01,6.78048526]
[1733489128769,5.68,233.04,232.99,6.78048526]
[1733489130971,5.68,233.04,232.86,12.81]
[1733489131272,5.68,233.04,232.98,6.78048526]
[1733489131472,3.43,233.03,232.98,6.78048526]
[1733489133276,3.43,233.03,232.87,5.0819]
[1733489133467,3.43,233.03,232.96,6.78048526]
[1733489133669,3.43,233.02,232.96,6.78048526]
[1733489133869,3.43,233.02,232.87,5.0819]
[1733489134069,3.43,233.02,232.97,6.78048526]
[1733489134274,10.21048526,233.02,232.87,5.0819]
[1733489134479,10.21048526,233.02,232.95,6.78048526]
[1733489134677,3.43,233.02,232.95,6.78048526]
[1733489135079,3.43,233.02,232.97,6.78048526]
[1733489135478,3.43,233.02,232.87,5.0819]
[1733489135681,3.43,233.02,232.97,6.78048526]
[1733489135973,3.43,233.02,232.99,6.78048526]
[1733489139978,3.43,233.02,233.01,6.78048526]
[1733489140878,2.0517,233.03,233.01,6.78048526]
[1733489141874,0.5039,233.03,233.01,6.78048526]
[1733489142484,6.61,233.02,233.01,6.78048526]
[1733489143685,3.9339,233.03,233.01,6.78048526]
[1733489144082,3.9339,233.03,233.02,1.7481]
[1733489144281,3.9339,233.03,233.01,6.78048526]
[1733489144282,3.43,233.03,233.01,6.78048526]
[1733489144683,3.43,233.03,233.01,9.37007166]
[1733489144886,3.43,233.03,233.01,6.78048526]
[1733489145480,8.22,233.03,233.01,6.78048526]
[1733489145684,8.22,233.03,232.99,2.5895864]
[1733489145685,1.79000001,233.05,233.02,6.78048526]
[1733489145884,0.27620001,233.05,233.04,6.78048526]
[1733489146084,3.0,233.07,233.04,9.37007166]
[1733489146280,6.78048526,233.2,233.06,6.78048526]
[1733489146484,6.78048526,233.2,233.12,6.78048526]
[1733489147181,9.78048526,233.2,233.12,6.78048526]
[1733489147382,6.04,233.15,233.14,6.78048526]
[1733489147580,14.31,233.15,233.14,6.78048526]
[1733489150984,8.08384,233.16,233.14,6.78048526]
[1733489152682,21.97384,233.16,233.14,6.78048526]
[1733489153188,3.0,233.22,233.14,6.78048526]
[1733489153488,3.0,233.22,233.19,6.78048526]
[1733489153878,3.4918,233.31,233.19,6.78048526]
[1733489153879,6.78048526,233.25,233.19,6.78048526]
[1733489154993,19.58,233.24,233.19,6.78048526]
[1733489155588,19.58,233.24,233.07,0.2471]
[1733489155589,19.58,233.24,233.21,6.78048526]
[1733489155985,19.58,233.24,233.23,6.78048526]
[1733489158188,1e-08,233.24,233.23,6.78048526]
[1733489160395,7.7,233.25,233.23,6.78048526]
[1733489161489,7.7,233.25,233.23,19.59048526]
[1733489161695,7.4526,233.25,233.23,19.59048526]
[1733489162102,10.8726,233.25,233.23,19.59048526]
[1733489162296,17.3926,233.25,233.23,19.59048526]
[1733489162492,3.52,233.25,233.23,19.59048526]
[1733489162692,3.52,233.25,233.24,0.78692459]
[1733489162994,3.0,233.31,233.25,12.81]
[1733489163297,3.0,233.31,233.3,19.59048526]
[1733489163496,3.0,233.31,233.3,6.78048526]
[1733489163693,0.92482,233.36,233.3,6.78048526]
[1733489163889,0.92482,233.36,233.24,33.25114727]
[1733489164194,9.58,233.35,233.33,6.78048526]
[1733489164391,15.99,233.35,233.33,6.78048526]
[1733489164593,21.84,233.35,233.33,6.78048526]
[1733489164800,18.85,233.35,233.33,6.78048526]
[1733489166198,18.85,233.35,233.24,33.25114727]
[1733489166402,18.85,233.35,233.33,6.78048526]
[1733489167096,18.85,233.35,233.24,33.25114727]
[1733489167296,1.8289,233.34,233.31,6.78048526]
[1733489167699,1.8289,233.34,233.33,6.78048526]
[1733489168597,18.85,233.35,233.33,6.78048526]
[1733489168900,18.85,233.35,233.34,6.78048526]
[1733489170099,18.85,233.35,233.32,10.57117647]
[1733489171494,18.85,233.35,233.24,31.10743265]
[1733489171495,18.85,233.35,233.29,10.57117647]
[1733489171697,18.85,233.35,233.26,10.57117647]
[1733489172000,18.85,233.35,233.23,10.57117647]
[1733489172202,29.42117647,233.35,233.23,10.57117647]
[1733489172400,1.6952,233.34,233.2,10.57117647]
[1733489172995,10.57117647,233.29,233.05,1.8382]
[1733489173196,10.57117647,233.29,233.14,10.57117647]
[1733489175503,10.57117647,233.32,233.17,10.57117647]
[1733489175797,10.57117647,233.32,233.2,10.57117647]
[1733489176108,1.6952,233.34,233.2,10.57117647]
[1733489177307,10.57117647,233.32,233.17,10.57117647]
[1733489178303,3.5498,233.31,233.17,10.57117647]
[1733489180400,10.57117647,233.29,233.14,10.57117647]
[1733489181798,3.5498,233.31,233.17,10.57117647]
[1733489182199,10.57117647,233.25,233.05,1.8382]
[1733489182509,10.57117647,233.22,233.08,10.57117647]
[1733489182803,10.57117647,233.19,233.05,10.57117647]
[1733489184106,10.57117647,233.16,232.94,2.57001205]
[1733489184410,10.57117647,233.16,232.99,10.57117647]
[1733489184710,10.57117647,233.13,232.99,10.57117647]
[1733489184910,3.4463,233.12,232.99,10.57117647]
[1733489188503,3.4463,233.12,233.02,10.57117647]
[1733489193923,4.39,233.11,233.02,10.57117647]
[1733489194223,4.39,233.11,232.99,10.57117647]
[1733489194419,1.7648,233.1,232.99,10.57117647]
[1733489195618,1.7648,233.1,233.02,10.57117647]
[1733489196122,3.43,233.09,233.02,10.57117647]
[1733489196324,4.46,233.08,233.02,10.57117647]
[1733489198829,4.46,233.08,232.99,10.57117647]
[1733489200626,4.46,233.08,233.02,10.57117647]
[1733489203731,3.43,233.07,233.02,10.57117647]
[1733489204328,3.0,233.06,233.02,10.57117647]
[1733489208040,3.0,233.06,233.03,6.78431833]
[1733489208942,3.43,233.05,233.03,6.78431833]
[1733489214048,3.43,233.05,232.9,2.5675044]
[1733489214343,3.43,233.05,233.02,6.78431833]
[1733489214537,3.43,233.05,233.01,6.78431833]
[1733489214737,4.89,233.04,233.01,6.78431833]
[1733489214941,4.89,233.04,232.89,2.5675044]
[1733489215140,4.21,233.03,233.0,6.78431833]
[1733489215741,10.99431833,233.03,232.88,1.7184]
[1733489215940,10.99431833,233.03,232.96,6.78431833]
[1733489216453,4.21,233.03,232.98,6.78431833]
[1733489216747,10.99431833,233.03,232.96,6.78431833]
[1733489217450,10.99431833,233.03,232.9,2.5675044]
[1733489217749,10.99431833,233.03,232.96,6.78431833]
[1733489217950,4.21,233.03,232.96,6.78431833]
[1733489218253,6.78431833,233.01,232.88,1.7184]
[1733489218441,6.78431833,232.98,232.89,2.5823604]
[1733489218641,6.78431833,232.98,232.91,6.78431833]
[1733489218841,6.78431833,232.98,232.88,1.7184]
[1733489219043,6.78431833,232.98,232.92,6.78431833]
[1733489219253,6.78431833,232.98,232.88,1.7184]
[1733489219555,6.78431833,232.98,232.91,6.78431833]
[1733489220052,6.78431833,232.98,232.88,1.7184]
[1733489220350,6.78431833,232.96,232.9,6.78431833]
[1733489220545,5.0,232.87,232.74,2.5823604]
[1733489220746,5.0,232.87,232.66,118.10608811]
[1733489220747,6.78431833,232.75,232.66,6.78431833]
[1733489221048,3.6933,232.95,232.72,6.78431833]
[1733489221352,11.56043705,232.94,232.73,6.78431833]
[1733489221544,6.78431833,232.81,232.61,1.7988]
[1733489221752,6.78431833,232.81,232.72,6.78431833]
[1733489222054,6.78431833,232.81,232.61,1.7988]
[1733489222253,6.78431833,232.77,232.7,6.78431833]
[1733489223344,6.78431833,232.72,232.58,1.87]
[1733489223547,1.8938,232.76,232.56,1.8223]
[1733489223755,6.78431833,232.73,232.65,6.78431833]
[1733489223955,6.78431833,232.73,232.57,1.9548]
[1733489223956,10.63783336,232.73,232.57,1.9548]
[1733489224253,10.63783336,232.67,232.49,1.9475]
[1733489224456,10.63783336,232.67,232.52,10.63783336]
[1733489224659,10.63783336,232.67,232.53,0.78943856]
[1733489225450,10.63783336,232.67,232.52,10.63783336]
[1733489225851,10.63783336,232.67,232.49,5.7246]
[1733489225852,10.63783336,232.67,232.53,10.63783336]
[1733489226553,6.86,232.66,232.53,10.63783336]
[1733489228164,6.86,232.66,232.49,5.7246]
[1733489228355,6.86,232.66,232.55,10.63783336]
[1733489229059,8.39,232.65,232.55,10.63783336]
[1733489229257,8.39,232.65,232.51,10.63783336]
[1733489229960,10.63783336,232.6,232.33,1.7881]
[1733489230156,10.63783336,232.6,232.33,5.5892]
[1733489230358,1.8926,232.59,232.33,5.5892]
[1733489230663,1.8926,232.59,232.44,10.63783336]
[1733489231458,1.8926,232.59,232.47,10.63783336]
[1733489232055,1.8926,232.59,232.5,10.63783336]
[1733489232356,8.39,232.65,232.56,10.63783336]
[1733489232658,8.39,232.65,232.44,10.63783336]
[1733489232659,8.39,232.65,232.59,10.63783336]
[1733489233054,8.39,232.65,232.62,10.63783336]
[1733489233662,8.39,232.65,232.56,10.63783336]
[1733489233861,8.39,232.65,232.57,0.78945851]
[1733489234056,8.39,232.65,232.53,17.02355677]
[1733489234261,8.39,232.65,232.54,0.78950502]
[1733489234460,8.39,232.65,232.55,0.78950502]
[1733489234759,8.39,232.65,232.53,17.02355677]
[1733489236162,8.39,232.65,232.57,17.02355677]
[1733489236454,8.39,232.65,232.49,1.7911]
[1733489236660,8.39,232.65,232.51,17.02355677]
[1733489236862,8.39,232.65,232.52,0.78953298]
[1733489237057,8.39,232.65,232.53,0.78953298]
[1733489237255,8.39,232.65,232.54,0.78953298]
[1733489237455,8.39,232.65,232.55,17.81308975]
[1733489237663,8.39,232.65,232.56,0.78954036]
[1733489237962,8.39,232.65,232.55,17.02355677]
[1733489238156,8.39,232.65,232.59,17.02355677]
[1733489238462,5.4464,232.65,232.63,17.02355677]
[1733489238661,2.503,232.65,232.63,17.02355677]
[1733489238863,2.503,232.65,232.64,0.78924212]
[1733489239165,6.86,232.66,232.64,0.78924212]
[1733489239464,6.86,232.66,232.65,2.7892054]
[1733489239862,6.86,232.66,232.65,2.0]
[1733489240756,5.08,232.67,232.65,2.78922534]
[1733489240962,5.08,232.67,232.65,2.0]
[1733489241163,3.0,232.73,232.69,17.02355677]
[1733489241757,1.793,232.79,232.7,0.78903565]
[1733489241963,1.793,232.79,232.69,17.02355677]
[1733489242359,3.0,232.78,232.7,0.78902842]
[1733489242565,3.43,232.77,232.7,0.78902842]
[1733489242759,5.24,232.76,232.69,17.02355677]
[1733489242966,5.24,232.76,232.7,0.78902142]
[1733489243468,5.24,232.76,232.69,17.02355677]
[1733489243667,5.24,232.76,232.65,2.0]
[1733489243668,5.24,232.76,232.65,19.02355677]
[1733489243972,5.24,232.76,232.66,0.78910737]
[1733489244166,5.24,232.76,232.67,0.78913556]
[1733489244365,5.24,232.76,232.65,19.02355677]
[1733489244667,5.24,232.76,232.66,0.78913883]
[1733489244868,5.24,232.76,232.67,0.78913883]
[1733489245068,5.24,232.76,232.69,17.02355677]
[1733489245265,5.24,232.76,232.7,0.78913883]
[1733489245663,5.24,232.76,232.71,0.78901187]
[1733489245869,5.24,232.76,232.69,17.02355677]
[1733489246061,5.24,232.76,232.7,0.78900617]
[1733489246266,5.24,232.76,232.71,0.78900617]
[1733489246470,6.44,232.75,232.71,0.78900617]
[1733489246665,6.44,232.75,232.69,17.02355677]
[1733489247060,6.44,232.75,232.7,0.78898049]
[1733489247264,6.44,232.75,232.71,0.78898049]
[1733489247467,6.44,232.75,232.71,0.78897706]
[1733489247768,6.44,232.75,232.7,1.9277]
[1733489247967,6.44,232.75,232.71,0.78897735]
[1733489248169,6.44,232.75,232.7,1.9277]
[1733489248369,6.44,232.75,232.71,0.78897754]
[1733489249271,6.44,232.75,232.69,17.02355677]
[1733489249471,6.44,232.75,232.66,1.7609]
[1733489249472,6.44,232.75,232.7,0.78899639]
[1733489249662,6.44,232.75,232.65,19.02355677]
[1733489249866,6.44,232.75,232.66,0.78909789]
[1733489250072,6.44,232.75,232.67,0.78909789]
[1733489250274,6.44,232.75,232.65,19.02355677]
[1733489250972,6.44,232.75,232.65,2.0]
[1733489254273,10.63374977,232.74,232.65,2.0]
[1733489255979,10.63374977,232.71,232.5,3.8448]
[1733489256183,10.63374977,232.71,232.57,10.63374977]
[1733489256875,10.63374977,232.74,232.6,10.63374977]
[1733489257883,10.63374977,232.74,232.57,10.63374977]
[1733489258383,10.63374977,232.71,232.57,10.63374977]
[1733489258979,10.63374977,232.74,232.57,10.63374977]
[1733489259383,10.63374977,232.74,232.6,10.63374977]
[1733489259780,10.63374977,232.74,232.5,3.8448]
[1733489260084,10.63374977,232.74,232.58,10.63374977]
[1733489260674,6.44,232.75,232.5,3.8448]
[1733489260879,10.63374977,232.74,232.6,10.63374977]
[1733489261775,10.63374977,232.74,232.57,10.63374977]
[1733489261979,10.63374977,232.71,232.57,10.63374977]
[1733489262179,10.63374977,232.68,232.51,10.63374977]
[1733489262383,1.7846,232.67,232.51,10.63374977]
[1733489262580,1.7846,232.67,232.55,0.83071]
[1733489262886,1.7984,232.66,232.55,0.83071]
[1733489263282,1.855,232.65,232.55,0.83071]
[1733489264381,3.43,232.64,232.55,0.83071]
[1733489264586,3.43,232.64,232.57,10.63374977]
[1733489265690,5.95,232.63,232.57,10.63374977]
[1733489266188,5.95,232.63,232.55,0.83071]
[1733489271088,3.0,232.62,232.55,0.83071]
[1733489272487,3.0,232.62,232.48,7.34881917]
[1733489272688,10.63374977,232.53,232.19,5.9053044]
[1733489272989,10.63374977,232.53,232.17,47.24243524]
[1733489272990,10.63374977,232.53,232.4,10.63374977]
[1733489273291,3.44,232.52,232.37,10.63374977]
[1733489273591,10.63374977,232.5,232.37,10.63374977]
[1733489274290,3.44,232.52,232.37,10.63374977]
[1733489275188,10.63374977,232.5,232.28,5.8112]
[1733489275388,3.44,232.52,232.36,10.63374977]
[1733489275594,3.44,232.52,232.39,10.63374977]
[1733489276585,3.44,232.52,232.42,10.63374977]
[1733489277286,5.76,232.51,232.39,10.63374977]
[1733489280489,5.76,232.51,232.29,0.66691]
[1733489280693,14.51544977,232.5,232.29,0.66691]
[1733489280899,14.51544977,232.5,232.34,10.63374977]
[1733489281597,14.51544977,232.5,232.35,1.9723]
[1733489282298,10.63374977,232.47,232.35,1.9723]
[1733489282695,10.63374977,232.47,232.31,10.63374977]
[1733489282996,10.63374977,232.44,232.31,10.63374977]